[Event "Titled Tuesday Blitz November 14 Early 2023"]
[White "Hartikainen, Jarmo"]
[Black "Suspenser17"]
[WhiteFideId "503134"]
[WhiteElo "2159"]
[BlackElo "2420"]
[Result "0-1"]
[Round "5"]
[TimeControl "180+1"]
[Date "2023.11.14"]
[WhiteClock "0:00:06"]
[BlackClock "0:00:08"]
[Board "183"]

1. e4 {[%clk 0:03:00]}  e5 {[%clk 0:03:00]} 2. Nf3 {[%clk 0:03:00]}  Nc6 {[%clk 0:03:00]} 3. Bc4 {[%clk 0:03:00]}  Nf6 {[%clk 0:03:01]} 4. d3 {[%clk 0:02:59]}  Bc5 {[%clk 0:03:01]} 5. c3 {[%clk 0:02:59]}  d6 {[%clk 0:03:00]} 6. O-O {[%clk 0:02:53]}  a6 {[%clk 0:03:01]} 7. b4 {[%clk 0:02:36]}  Ba7 {[%clk 0:03:00]} 8. Na3 {[%clk 0:02:20]}  h6 {[%clk 0:02:58]} 9. Nc2 {[%clk 0:02:20]}  g5 {[%clk 0:02:45]} 10. Be3 {[%clk 0:02:14]}  Nh7 {[%clk 0:02:35]} 11. Bxa7 {[%clk 0:02:12]}  Rxa7 {[%clk 0:02:28]} 12. Ne3 {[%clk 0:02:13]}  Be6 {[%clk 0:02:23]} 13. d4 {[%clk 0:01:46]}  exd4 {[%clk 0:02:09]} 14. cxd4 {[%clk 0:01:37]}  Bxc4 {[%clk 0:02:03]} 15. Nxc4 {[%clk 0:01:36]}  O-O {[%clk 0:01:55]} 16. Ne3 {[%clk 0:01:28]}  Nf6 {[%clk 0:01:49]} 17. d5 {[%clk 0:00:52]}  Ne7 {[%clk 0:01:43]} 18. Qd4 {[%clk 0:00:46]}  Nc8 {[%clk 0:01:43]} 19. e5 {[%clk 0:00:41]}  dxe5 {[%clk 0:01:40]} 20. Nxe5 {[%clk 0:00:39]}  Ra8 {[%clk 0:01:37]} 21. N5g4 {[%clk 0:00:36]}  Nxg4 {[%clk 0:01:34]} 22. Nxg4 {[%clk 0:00:36]}  f5 {[%clk 0:01:20]} 23. Nxh6+ {[%clk 0:00:26]}  Kh7 {[%clk 0:01:19]} 24. Nxf5 {[%clk 0:00:25]}  Rxf5 {[%clk 0:01:18]} 25. Qd3 {[%clk 0:00:25]}  Qxd5 {[%clk 0:01:11]} 26. Qh3+ {[%clk 0:00:26]}  Kg7 {[%clk 0:01:09]} 27. Rad1 {[%clk 0:00:26]}  Qf7 {[%clk 0:00:52]} 28. Rfe1 {[%clk 0:00:19]}  Nd6 {[%clk 0:00:51]} 29. Qc3+ {[%clk 0:00:15]}  Kg6 {[%clk 0:00:36]} 30. Re5 {[%clk 0:00:14]}  Rxe5 {[%clk 0:00:28]} 31. Qxe5 {[%clk 0:00:13]}  Re8 {[%clk 0:00:29]} 32. Qd4 {[%clk 0:00:11]}  Qf4 {[%clk 0:00:24]} 33. Qd3+ {[%clk 0:00:11]}  Qe4 {[%clk 0:00:24]} 34. f3 {[%clk 0:00:11]}  Qxd3 {[%clk 0:00:23]} 35. Rxd3 {[%clk 0:00:12]}  Re1+ {[%clk 0:00:23]} 36. Kf2 {[%clk 0:00:12]}  Rb1 {[%clk 0:00:23]} 37. a3 {[%clk 0:00:12]}  Rb2+ {[%clk 0:00:23]} 38. Kg3 {[%clk 0:00:12]}  Nf5+ {[%clk 0:00:22]} 39. Kh3 {[%clk 0:00:12]}  Nd6 {[%clk 0:00:22]} 40. g4 {[%clk 0:00:11]}  Ra2 {[%clk 0:00:19]} 41. Kg3 {[%clk 0:00:12]}  Kf6 {[%clk 0:00:19]} 42. h4 {[%clk 0:00:11]}  gxh4+ {[%clk 0:00:19]} 43. Kxh4 {[%clk 0:00:12]}  Nb5 {[%clk 0:00:14]} 44. f4 {[%clk 0:00:10]}  Rxa3 {[%clk 0:00:14]} 45. Rd7 {[%clk 0:00:10]}  Ke6 {[%clk 0:00:11]} 46. Rh7 {[%clk 0:00:09]}  Rf3 {[%clk 0:00:10]} 47. f5+ {[%clk 0:00:09]}  Kf6 {[%clk 0:00:09]} 48. Rh6+ {[%clk 0:00:09]}  Kg7 {[%clk 0:00:09]} 49. Rg6+ {[%clk 0:00:10]}  Kf7 {[%clk 0:00:10]} 50. Kg5 {[%clk 0:00:10]}  Nd6 {[%clk 0:00:09]} 51. Rh6 {[%clk 0:00:10]}  Ne4+ {[%clk 0:00:08]} 52. Kh4 {[%clk 0:00:09]}  Nf6 {[%clk 0:00:07]} 53. Rg6 {[%clk 0:00:07]}  Rf4 {[%clk 0:00:06]} 54. Kg3 {[%clk 0:00:08]}  Rxg4+ {[%clk 0:00:06]} 55. Rxg4 {[%clk 0:00:08]}  Nxg4 {[%clk 0:00:07]} 56. Kxg4 {[%clk 0:00:08]}  b6 {[%clk 0:00:08]} 57. Kf4 {[%clk 0:00:08]}  Kf6 {[%clk 0:00:07]} 58. Ke4 {[%clk 0:00:08]}  c6 {[%clk 0:00:07]} 59. Kf4 {[%clk 0:00:08]}  a5 {[%clk 0:00:07]} 60. bxa5 {[%clk 0:00:08]}  bxa5 {[%clk 0:00:08]} 61. Ke4 {[%clk 0:00:09]}  a4 {[%clk 0:00:08]} 62. Kd4 {[%clk 0:00:09]}  c5+ {[%clk 0:00:07]} 63. Kc4 {[%clk 0:00:08]}  Kxf5 {[%clk 0:00:06]} 64. Kc3 {[%clk 0:00:08]}  Ke5 {[%clk 0:00:05]} 65. Kc4 {[%clk 0:00:08]}  Kd6 {[%clk 0:00:05]} 66. Kc3 {[%clk 0:00:08]}  Kd5 {[%clk 0:00:06]} 67. Kb2 {[%clk 0:00:08]}  Kc4 {[%clk 0:00:06]} 68. Ka3 {[%clk 0:00:09]}  Kd3 {[%clk 0:00:06]} 69. Kxa4 {[%clk 0:00:09]}  c4 {[%clk 0:00:06]} 70. Kb4 {[%clk 0:00:10]}  c3 {[%clk 0:00:07]} 71. Kc5 {[%clk 0:00:11]}  c2 {[%clk 0:00:08]} 72. Kd5 {[%clk 0:00:12]}  c1=Q {[%clk 0:00:08]} 73. Ke5 {[%clk 0:00:06]}  Qc4 {[%clk 0:00:08]} 0-1


[Site "https://www.chess.com"]

[Event "Titled Tuesday Blitz November 14 Early 2023"]
[White "Ismayilova, Khanim"]
[Black "ChessLebaneseSalah"]
[WhiteFideId "13429019"]
[WhiteElo "2156"]
[BlackElo "2406"]
[Result "0-1"]
[Round "5"]
[TimeControl "180+1"]
[Date "2023.11.14"]
[WhiteClock "0:01:23"]
[BlackClock "0:01:15"]
[Board "186"]

1. e4 {[%clk 0:03:00]}  c5 {[%clk 0:02:55]} 2. c3 {[%clk 0:03:00]}  Nf6 {[%clk 0:02:55]} 3. e5 {[%clk 0:03:00]}  Nd5 {[%clk 0:02:54]} 4. d4 {[%clk 0:03:01]}  cxd4 {[%clk 0:02:55]} 5. Nf3 {[%clk 0:03:01]}  d6 {[%clk 0:02:52]} 6. Bc4 {[%clk 0:03:01]}  Nb6 {[%clk 0:02:52]} 7. Bb3 {[%clk 0:03:01]}  Nc6 {[%clk 0:02:50]} 8. cxd4 {[%clk 0:03:01]}  dxe5 {[%clk 0:02:48]} 9. dxe5 {[%clk 0:02:42]}  Qxd1+ {[%clk 0:02:46]} 10. Kxd1 {[%clk 0:02:42]}  Bg4 {[%clk 0:02:47]} 11. Bf4 {[%clk 0:02:33]}  Rd8+ {[%clk 0:02:30]} 12. Kc1 {[%clk 0:02:24]}  e6 {[%clk 0:02:23]} 13. Nfd2 {[%clk 0:01:59]}  Nd4 {[%clk 0:02:06]} 14. Be3 {[%clk 0:01:38]}  Rc8+ {[%clk 0:01:15]} 15. Nc3 {[%clk 0:01:37]}  Rxc3+ {[%clk 0:01:15]} 16. bxc3 {[%clk 0:01:37]}  Ba3+ {[%clk 0:01:15]} 17. Kb1 {[%clk 0:01:35]}  Bf5+ {[%clk 0:01:15]} 18. Bc2 {[%clk 0:01:23]}  Bxc2# {[%clk 0:01:15]} 0-1


[Site "https://www.chess.com"]

[Event "Titled Tuesday Blitz November 14 Early 2023"]
[White "Marcziter, Dmitrii"]
[Black "DonCiao"]
[WhiteFideId "13900765"]
[WhiteElo "2405"]
[BlackElo "2128"]
[Result "1-0"]
[Round "5"]
[TimeControl "180+1"]
[Date "2023.11.14"]
[WhiteClock "0:00:24"]
[BlackClock "0:00:00"]
[Board "187"]

1. d4 {[%clk 0:03:00]}  Nf6 {[%clk 0:02:59]} 2. c4 {[%clk 0:03:00]}  g6 {[%clk 0:02:56]} 3. Nf3 {[%clk 0:02:59]}  Bg7 {[%clk 0:02:55]} 4. g3 {[%clk 0:02:59]}  d5 {[%clk 0:02:55]} 5. cxd5 {[%clk 0:02:58]}  Nxd5 {[%clk 0:02:54]} 6. Bg2 {[%clk 0:02:59]}  Nb6 {[%clk 0:02:50]} 7. O-O {[%clk 0:02:58]}  Nc6 {[%clk 0:02:50]} 8. e3 {[%clk 0:02:57]}  O-O {[%clk 0:02:49]} 9. Nc3 {[%clk 0:02:56]}  Re8 {[%clk 0:02:49]} 10. d5 {[%clk 0:02:54]}  Na5 {[%clk 0:02:43]} 11. Nd4 {[%clk 0:02:50]}  Nac4 {[%clk 0:02:34]} 12. b3 {[%clk 0:02:44]}  Nd6 {[%clk 0:02:33]} 13. Bb2 {[%clk 0:02:42]}  e6 {[%clk 0:02:23]} 14. dxe6 {[%clk 0:02:37]}  Bxe6 {[%clk 0:02:21]} 15. Nxe6 {[%clk 0:02:36]}  Rxe6 {[%clk 0:02:22]} 16. Qe2 {[%clk 0:02:34]}  Qe7 {[%clk 0:02:21]} 17. Rac1 {[%clk 0:02:29]}  c6 {[%clk 0:02:16]} 18. Rfd1 {[%clk 0:02:24]}  Re8 {[%clk 0:02:09]} 19. Bh3 {[%clk 0:02:19]}  f5 {[%clk 0:02:02]} 20. Qd3 {[%clk 0:02:14]}  Ne4 {[%clk 0:01:58]} 21. Qc2 {[%clk 0:01:54]}  Nxc3 {[%clk 0:01:54]} 22. Bxc3 {[%clk 0:01:52]}  Bxc3 {[%clk 0:01:54]} 23. Qxc3 {[%clk 0:01:51]}  Nd5 {[%clk 0:01:54]} 24. Qc5 {[%clk 0:01:47]}  Qxc5 {[%clk 0:01:49]} 25. Rxc5 {[%clk 0:01:47]}  Nf6 {[%clk 0:01:44]} 26. Bg2 {[%clk 0:01:45]}  a6 {[%clk 0:01:39]} 27. Rd4 {[%clk 0:01:43]}  R6e7 {[%clk 0:01:36]} 28. Rc2 {[%clk 0:01:34]}  Kf7 {[%clk 0:01:35]} 29. Rcd2 {[%clk 0:01:32]}  h5 {[%clk 0:01:29]} 30. h3 {[%clk 0:01:30]}  Ne4 {[%clk 0:01:17]} 31. Rc2 {[%clk 0:01:21]}  Nf6 {[%clk 0:00:51]} 32. Bf1 {[%clk 0:01:18]}  Nd7 {[%clk 0:00:43]} 33. Bc4+ {[%clk 0:01:17]}  Kg7 {[%clk 0:00:42]} 34. Kg2 {[%clk 0:01:12]}  Ne5 {[%clk 0:00:42]} 35. Be2 {[%clk 0:01:12]}  Rd7 {[%clk 0:00:36]} 36. Rcd2 {[%clk 0:01:07]}  Rxd4 {[%clk 0:00:35]} 37. Rxd4 {[%clk 0:01:07]}  Re7 {[%clk 0:00:35]} 38. f4 {[%clk 0:01:03]}  Nf7 {[%clk 0:00:32]} 39. Kf2 {[%clk 0:01:01]}  Kf6 {[%clk 0:00:27]} 40. Bf3 {[%clk 0:00:59]}  g5 {[%clk 0:00:20]} 41. b4 {[%clk 0:00:52]}  g4 {[%clk 0:00:19]} 42. hxg4 {[%clk 0:00:51]}  hxg4 {[%clk 0:00:19]} 43. Bg2 {[%clk 0:00:51]}  Ke6 {[%clk 0:00:14]} 44. e4 {[%clk 0:00:50]}  Nd6 {[%clk 0:00:12]} 45. e5 {[%clk 0:00:48]}  Nb5 {[%clk 0:00:11]} 46. Rd8 {[%clk 0:00:47]}  Rd7 {[%clk 0:00:11]} 47. Rf8 {[%clk 0:00:35]}  Rd2+ {[%clk 0:00:10]} 48. Kf1 {[%clk 0:00:34]}  Rxa2 {[%clk 0:00:07]} 49. Rf6+ {[%clk 0:00:33]}  Ke7 {[%clk 0:00:06]} 50. Rxf5 {[%clk 0:00:33]}  Nd4 {[%clk 0:00:07]} 51. Rg5 {[%clk 0:00:31]}  Ra1+ {[%clk 0:00:05]} 52. Kf2 {[%clk 0:00:29]}  Ra2+ {[%clk 0:00:04]} 53. Ke3 {[%clk 0:00:26]}  Rxg2 {[%clk 0:00:02]} 54. Kxd4 {[%clk 0:00:25]}  Rxg3 {[%clk 0:00:00]} 55. f5 {[%clk 0:00:24]} 1-0


[Site "https://www.chess.com"]

[Event "Titled Tuesday Blitz November 14 Early 2023"]
[White "Ghosh, Chanchal Kumer"]
[Black "UK_23"]
[WhiteFideId "10201858"]
[WhiteElo "2123"]
[BlackElo "2403"]
[Result "1-0"]
[Round "5"]
[TimeControl "180+1"]
[Date "2023.11.14"]
[WhiteClock "0:00:03"]
[BlackClock "0:00:00"]
[Board "188"]

1. e4 {[%clk 0:02:48]}  e5 {[%clk 0:02:59]} 2. Nf3 {[%clk 0:02:47]}  Nc6 {[%clk 0:02:59]} 3. Bc4 {[%clk 0:02:46]}  Nf6 {[%clk 0:02:59]} 4. Ng5 {[%clk 0:02:45]}  d5 {[%clk 0:02:29]} 5. exd5 {[%clk 0:02:31]}  Na5 {[%clk 0:02:29]} 6. Bb5+ {[%clk 0:02:30]}  c6 {[%clk 0:02:29]} 7. dxc6 {[%clk 0:02:30]}  bxc6 {[%clk 0:02:30]} 8. Qf3 {[%clk 0:02:31]}  Be7 {[%clk 0:02:22]} 9. Bxc6+ {[%clk 0:02:30]}  Nxc6 {[%clk 0:02:22]} 10. Qxc6+ {[%clk 0:02:30]}  Bd7 {[%clk 0:02:22]} 11. Qc4 {[%clk 0:02:31]}  O-O {[%clk 0:02:22]} 12. Nc3 {[%clk 0:02:30]}  h6 {[%clk 0:02:17]} 13. Nf3 {[%clk 0:02:28]}  Rc8 {[%clk 0:02:13]} 14. Qd3 {[%clk 0:02:28]}  e4 {[%clk 0:02:08]} 15. Nxe4 {[%clk 0:02:27]}  Nxe4 {[%clk 0:02:06]} 16. Qxe4 {[%clk 0:02:28]}  Bc6 {[%clk 0:02:05]} 17. Qg4 {[%clk 0:02:04]}  f5 {[%clk 0:02:02]} 18. Qh5 {[%clk 0:01:53]}  Bb5 {[%clk 0:01:29]} 19. d3 {[%clk 0:01:15]}  Rxc2 {[%clk 0:01:28]} 20. O-O {[%clk 0:00:53]}  Qxd3 {[%clk 0:00:50]} 21. Re1 {[%clk 0:00:20]}  Bc5 {[%clk 0:00:44]} 22. Be3 {[%clk 0:00:16]}  Bb4 {[%clk 0:00:24]} 23. Red1 {[%clk 0:00:15]}  Qc4 {[%clk 0:00:16]} 24. Nd4 {[%clk 0:00:12]}  Rxb2 {[%clk 0:00:12]} 25. Nxf5 {[%clk 0:00:11]}  Bc3 {[%clk 0:00:09]} 26. Rac1 {[%clk 0:00:09]}  Ba4 {[%clk 0:00:08]} 27. Nxh6+ {[%clk 0:00:08]}  gxh6 {[%clk 0:00:01]} 28. Qg6+ {[%clk 0:00:08]}  Bg7 {[%clk 0:00:02]} 29. Rxc4 {[%clk 0:00:06]}  Bxd1 {[%clk 0:00:00]} 30. Bd4 {[%clk 0:00:03]} 1-0


[Site "https://www.chess.com"]

[Event "Titled Tuesday Blitz November 14 Early 2023"]
[White "Nastase, Robert-Paul"]
[Black "Smirnov, Timofey"]
[WhiteFideId "1221175"]
[BlackFideId "24176427"]
[WhiteElo "2402"]
[BlackElo "2099"]
[Result "1-0"]
[Round "5"]
[TimeControl "180+1"]
[Date "2023.11.14"]
[WhiteClock "0:00:10"]
[BlackClock "0:00:03"]
[Board "189"]

1. a3 {[%clk 0:02:57]}  d5 {[%clk 0:02:55]} 2. f4 {[%clk 0:02:54]}  Bf5 {[%clk 0:02:49]} 3. Nf3 {[%clk 0:02:54]}  e6 {[%clk 0:02:48]} 4. g3 {[%clk 0:02:54]}  h6 {[%clk 0:02:37]} 5. Bg2 {[%clk 0:02:55]}  Nf6 {[%clk 0:02:37]} 6. O-O {[%clk 0:02:55]}  Be7 {[%clk 0:02:30]} 7. d3 {[%clk 0:02:54]}  O-O {[%clk 0:02:29]} 8. Kh1 {[%clk 0:02:51]}  c6 {[%clk 0:02:27]} 9. e3 {[%clk 0:02:42]}  Nbd7 {[%clk 0:02:24]} 10. Qe2 {[%clk 0:02:39]}  a5 {[%clk 0:02:23]} 11. Nbd2 {[%clk 0:02:38]}  Bh7 {[%clk 0:02:20]} 12. e4 {[%clk 0:02:37]}  dxe4 {[%clk 0:02:20]} 13. dxe4 {[%clk 0:02:38]}  Qc7 {[%clk 0:02:06]} 14. b3 {[%clk 0:02:21]}  b5 {[%clk 0:01:59]} 15. Bb2 {[%clk 0:02:20]}  Rfd8 {[%clk 0:01:56]} 16. h3 {[%clk 0:02:09]}  Nc5 {[%clk 0:01:49]} 17. Ne5 {[%clk 0:02:05]}  Ncd7 {[%clk 0:01:46]} 18. Nd3 {[%clk 0:01:54]}  Nc5 {[%clk 0:01:44]} 19. Nf2 {[%clk 0:01:53]}  Rd7 {[%clk 0:01:41]} 20. Rfe1 {[%clk 0:01:32]}  Rad8 {[%clk 0:01:41]} 21. Nf1 {[%clk 0:01:30]}  Nb7 {[%clk 0:01:19]} 22. Bf3 {[%clk 0:01:27]}  Bc5 {[%clk 0:01:18]} 23. Nd3 {[%clk 0:01:25]}  Bb6 {[%clk 0:01:16]} 24. Bxf6 {[%clk 0:01:22]}  gxf6 {[%clk 0:01:15]} 25. Nh2 {[%clk 0:01:22]}  Nc5 {[%clk 0:01:11]} 26. Ng4 {[%clk 0:01:21]}  Kg7 {[%clk 0:01:07]} 27. Ngf2 {[%clk 0:01:17]}  Nxd3 {[%clk 0:00:59]} 28. Nxd3 {[%clk 0:01:17]}  c5 {[%clk 0:00:42]} 29. Rad1 {[%clk 0:00:58]}  c4 {[%clk 0:00:41]} 30. bxc4 {[%clk 0:00:50]}  Qxc4 {[%clk 0:00:39]} 31. Bg4 {[%clk 0:00:23]}  a4 {[%clk 0:00:20]} 32. f5 {[%clk 0:00:23]}  exf5 {[%clk 0:00:19]} 33. exf5 {[%clk 0:00:21]}  Qc6+ {[%clk 0:00:12]} 34. Kh2 {[%clk 0:00:20]}  Rc7 {[%clk 0:00:07]} 35. Rc1 {[%clk 0:00:19]}  Rcc8 {[%clk 0:00:05]} 36. Bf3 {[%clk 0:00:16]}  Qc7 {[%clk 0:00:05]} 37. Be4 {[%clk 0:00:15]}  Re8 {[%clk 0:00:04]} 38. Nf4 {[%clk 0:00:13]}  Bxf5 {[%clk 0:00:04]} 39. Nh5+ {[%clk 0:00:11]}  Kg6 {[%clk 0:00:03]} 40. Bxf5+ {[%clk 0:00:10]}  Kxf5 {[%clk 0:00:03]} 41. Qg4# {[%clk 0:00:10]} 1-0


[Site "https://www.chess.com"]

[Event "Titled Tuesday Blitz November 14 Early 2023"]
[White "Hoffmann, Asa"]
[Black "Winkels, Marcel"]
[WhiteFideId "2001470"]
[BlackFideId "1003887"]
[WhiteElo "2385"]
[BlackElo "2069"]
[Result "1-0"]
[Round "5"]
[TimeControl "180+1"]
[Date "2023.11.14"]
[WhiteClock "0:01:28"]
[BlackClock "0:00:00"]
[Board "191"]

1. d4 {[%clk 0:02:58]}  Nf6 {[%clk 0:02:59]} 2. Bg5 {[%clk 0:02:54]}  d5 {[%clk 0:02:54]} 3. Nd2 {[%clk 0:02:53]}  g6 {[%clk 0:02:53]} 4. e3 {[%clk 0:02:50]}  Bg7 {[%clk 0:02:52]} 5. Bd3 {[%clk 0:02:50]}  O-O {[%clk 0:02:51]} 6. f4 {[%clk 0:02:50]}  c5 {[%clk 0:02:51]} 7. c3 {[%clk 0:02:50]}  Qb6 {[%clk 0:02:48]} 8. Rb1 {[%clk 0:02:49]}  Nc6 {[%clk 0:02:36]} 9. Ngf3 {[%clk 0:02:49]}  Bg4 {[%clk 0:02:25]} 10. O-O {[%clk 0:02:48]}  Rfe8 {[%clk 0:02:23]} 11. h3 {[%clk 0:02:47]}  Bxf3 {[%clk 0:02:17]} 12. Nxf3 {[%clk 0:02:47]}  h6 {[%clk 0:02:10]} 13. Bh4 {[%clk 0:02:46]}  Rac8 {[%clk 0:01:59]} 14. Ne5 {[%clk 0:02:45]}  Nxe5 {[%clk 0:01:53]} 15. fxe5 {[%clk 0:02:45]}  Ne4 {[%clk 0:01:53]} 16. Bxe4 {[%clk 0:02:41]}  dxe4 {[%clk 0:01:53]} 17. Qg4 {[%clk 0:02:40]}  Qc6 {[%clk 0:01:46]} 18. Rf2 {[%clk 0:02:18]}  Qd5 {[%clk 0:01:40]} 19. Rbf1 {[%clk 0:02:16]}  g5 {[%clk 0:01:28]} 20. Rxf7 {[%clk 0:02:08]}  Qxf7 {[%clk 0:01:21]} 21. Rxf7 {[%clk 0:02:07]}  Kxf7 {[%clk 0:01:22]} 22. Qf5+ {[%clk 0:02:03]}  Kg8 {[%clk 0:01:21]} 23. Bg3 {[%clk 0:02:00]}  Rf8 {[%clk 0:01:13]} 24. Qxe4 {[%clk 0:01:59]}  b6 {[%clk 0:01:08]} 25. Qb7 {[%clk 0:01:55]}  Rce8 {[%clk 0:01:02]} 26. Qxa7 {[%clk 0:01:54]}  Rf5 {[%clk 0:01:01]} 27. Qxb6 {[%clk 0:01:52]}  cxd4 {[%clk 0:00:58]} 28. Qe6+ {[%clk 0:01:42]}  Rf7 {[%clk 0:00:57]} 29. cxd4 {[%clk 0:01:41]}  Rf8 {[%clk 0:00:45]} 30. d5 {[%clk 0:01:39]}  Kh8 {[%clk 0:00:43]} 31. d6 {[%clk 0:01:37]}  exd6 {[%clk 0:00:34]} 32. exd6 {[%clk 0:01:36]}  Rf1+ {[%clk 0:00:33]} 33. Kh2 {[%clk 0:01:36]}  h5 {[%clk 0:00:31]} 34. d7 {[%clk 0:01:31]}  h4 {[%clk 0:00:20]} 35. Be5 {[%clk 0:01:31]}  Rd1 {[%clk 0:00:00]} 36. Qh6+ {[%clk 0:01:28]} 1-0


[Site "https://www.chess.com"]

[Event "Titled Tuesday Blitz November 14 Early 2023"]
[White "MarijaKuznecova"]
[Black "Samarth J Rao"]
[BlackFideId "46652370"]
[WhiteElo "2371"]
[BlackElo "2048"]
[Result "1-0"]
[Round "5"]
[TimeControl "180+1"]
[Date "2023.11.14"]
[WhiteClock "0:00:26"]
[BlackClock "0:00:00"]
[Board "192"]

1. e4 {[%clk 0:03:00]}  d5 {[%clk 0:02:57]} 2. exd5 {[%clk 0:03:00]}  Qxd5 {[%clk 0:02:58]} 3. Nc3 {[%clk 0:03:01]}  Qd6 {[%clk 0:02:59]} 4. d4 {[%clk 0:03:01]}  Nf6 {[%clk 0:02:59]} 5. Nf3 {[%clk 0:03:00]}  c6 {[%clk 0:02:58]} 6. Bc4 {[%clk 0:02:56]}  Bg4 {[%clk 0:02:58]} 7. Be3 {[%clk 0:02:49]}  e6 {[%clk 0:02:56]} 8. h3 {[%clk 0:02:50]}  Bxf3 {[%clk 0:02:55]} 9. Qxf3 {[%clk 0:02:49]}  Qc7 {[%clk 0:02:55]} 10. O-O-O {[%clk 0:02:45]}  Nbd7 {[%clk 0:02:54]} 11. g4 {[%clk 0:02:38]}  h6 {[%clk 0:02:53]} 12. h4 {[%clk 0:02:37]}  Qa5 {[%clk 0:02:36]} 13. Kb1 {[%clk 0:02:32]}  Nb6 {[%clk 0:02:32]} 14. Bb3 {[%clk 0:02:23]}  Bb4 {[%clk 0:02:31]} 15. g5 {[%clk 0:02:16]}  Nfd5 {[%clk 0:02:26]} 16. Ne4 {[%clk 0:02:13]}  h5 {[%clk 0:02:19]} 17. g6 {[%clk 0:01:52]}  f6 {[%clk 0:02:08]} 18. c4 {[%clk 0:01:35]}  Ne7 {[%clk 0:02:02]} 19. a3 {[%clk 0:01:22]}  Bxa3 {[%clk 0:01:59]} 20. bxa3 {[%clk 0:01:23]}  Qxa3 {[%clk 0:01:59]} 21. Kc2 {[%clk 0:01:22]}  Na4 {[%clk 0:01:54]} 22. Rb1 {[%clk 0:01:15]}  Nf5 {[%clk 0:01:48]} 23. Nc3 {[%clk 0:00:59]}  Nxc3 {[%clk 0:01:45]} 24. Kxc3 {[%clk 0:01:00]}  Qa5+ {[%clk 0:01:44]} 25. Kc2 {[%clk 0:01:00]}  Rc8 {[%clk 0:01:39]} 26. Qe4 {[%clk 0:00:56]}  Kd7 {[%clk 0:01:31]} 27. c5 {[%clk 0:00:49]}  Rhe8 {[%clk 0:01:24]} 28. Ra1 {[%clk 0:00:48]}  Qb4 {[%clk 0:01:13]} 29. Rhb1 {[%clk 0:00:41]}  Nxd4+ {[%clk 0:00:18]} 30. Bxd4 {[%clk 0:00:32]}  e5 {[%clk 0:00:16]} 31. Be6+ {[%clk 0:00:26]}  Rxe6 {[%clk 0:00:10]} 32. Rxb4 {[%clk 0:00:26]}  exd4 {[%clk 0:00:00]} 33. Rxb7+ {[%clk 0:00:26]} 1-0


[Site "https://www.chess.com"]

[Event "Titled Tuesday Blitz November 14 Early 2023"]
[White "EvgenyBurmakin"]
[Black "Villafane Gomez, Jaime"]
[BlackFideId "4426517"]
[WhiteElo "2356"]
[BlackElo "1741"]
[Result "1-0"]
[Round "5"]
[TimeControl "180+1"]
[Date "2023.11.14"]
[WhiteClock "0:02:47"]
[BlackClock "0:02:27"]
[Board "194"]

1. e4 {[%clk 0:03:00]}  e6 {[%clk 0:02:59]} 2. d4 {[%clk 0:02:59]}  d5 {[%clk 0:02:57]} 3. Nd2 {[%clk 0:02:59]}  Nf6 {[%clk 0:02:56]} 4. e5 {[%clk 0:02:59]}  Nfd7 {[%clk 0:02:56]} 5. f4 {[%clk 0:02:59]}  c5 {[%clk 0:02:56]} 6. c3 {[%clk 0:02:59]}  Nc6 {[%clk 0:02:56]} 7. Ndf3 {[%clk 0:02:58]}  Qb6 {[%clk 0:02:55]} 8. g3 {[%clk 0:02:55]}  f6 {[%clk 0:02:51]} 9. Bd3 {[%clk 0:02:49]}  cxd4 {[%clk 0:02:44]} 10. cxd4 {[%clk 0:02:48]}  Nxd4 {[%clk 0:02:42]} 11. Nxd4 {[%clk 0:02:47]}  Qxd4 {[%clk 0:02:27]} 12. Bg6+ {[%clk 0:02:47]} 1-0


[Site "https://www.chess.com"]